Workbook

Sheet 1
E1: Приложение 1 к Решению №26 от 27 05.2022 г . « Об исполнении бюджета сельской администрации МО Каспинское сельское поселение за 2021 года."
A2: Объем поступлений доходов в бюджет муниципального образования Каспинское сельское поселение за 2021 году
A3: Код главы администратора* | B3: Код бюджетной классификации Российской Федерации | C3: Наименование доходов | D3: Изменения (+;-) | E3: Утверждено, сумма (тыс.рублей) | F3: Исполнено, сумма (тыс.рублей) | G3: Процент исполнения (процент)
A4: 1 | B4: 2 | C4: 3 | D4: 4 | E4: 5
A5: 182 | B5: 1 00 00000 00 0000 000 | C5: НАЛОГОВЫЕ И НЕНАЛОГОВЫЕ ДОХОДЫ | D5: =D6+D15 ->  | E5: =E6+E15 -> 293.50 | F5: =F6+F15 -> 295.40 | G5: =F5/E5*100 -> 101
C6: НАЛОГОВЫЕ ДОХОДЫ | D6: =D7+D8+D10 -> 42.1 | E6: =E7+E8+E10 -> 293.50 | F6: =F7+F8+F10 -> 295.40 | G6: 101
A7: 182 | B7: 1 01 02000 01 0000 110 | C7: Налог на доходы физических лиц | D7: 12.0 | E7: 22.00 | F7: 22.66 | G7: =F7/E7*100 -> 103
A8: 182 | B8: 1 05 00000 00 0000 000 | C8: Налоги на совокупный доход | D8: =D9 -> -1.2 | E8: =E9 -> 38.00 | F8: =F9 -> 38.16 | G8: =F8/E8*100 -> 100
A9: 182 | B9: 1 05 03000 01 0000 110 | C9: Единый сельскохозяйственный налог | D9: -1.2 | E9: 38.00 | F9: 38.16 | G9: 100
A10: 182 | B10: 1 06 00000 00 0000 000 | C10: Налоги на имущество | D10: =D11+D12 -> 31.3 | E10: =E11+E12 -> 233.50 | F10: =F11+F12 -> 234.58 | G10: 100
A11: 182 | B11: 1 06 01000 00 0000 110 | C11: Налог на имущество физических лиц | D11: -8.7 | E11: 33.00 | F11: 33.13 | G11: 100
A12: 182 | B12: 1 06 06000 00 0000 110 | C12: Земельный налог | D12: 40.0 | E12: =E13+E14 -> 200.50 | F12: =F13+F14 -> 201.44 | G12: 100
A13: 182 | B13: 1 06 06033 10 0000 110 | C13: Земельный налог с организаций | E13: 57.50 | F13: 57.51 | G13: 100
A14: 182 | B14: 1 06 06043 10 0000 110 | C14: Земельный налог с физических лиц | E14: 143.00 | F14: 143.93 | G14: 101
C15: НЕНАЛОГОВЫЕ ДОХОДЫ | D15: =#REF! -> 
A16: 801 | B16: 2 00 00000 00 0000 000 | C16: Безвозмездные поступления | D16: =D17 -> 0.0 | E16: =E17+E23 -> 1976.79 | F16: =F17+F23 -> 1976.79 | G16: 100
A17: 801 | B17: 2 02 00000 00 0000 000 | C17: Безвозмездные поступления от других бюджетов бюджетной системы Российской Федерации | D17: 0.0 | E17: =E18 -> 2102.67 | F17: =F18 -> 2102.67 | G17: 100
A18: 801 | B18: 2 02 00000 00 0000 000 | C18: Безвозмездные поступления от других бюджетов бюджетной системы Российской Федерации | E18: =SUM(E19:E22) -> 2102.67 | F18: =F19+F20+F21+F22 -> 2102.67 | G18: 100
A19: 801 | B19: 2 02 15001 10 0000 150 | C19: Дотации бюджетам субъектов Российской Федерации и муниципальных образований | E19: 1229.40 | F19: 1229.40 | G19: 100
A20: 801 | B20: 2 02 03000 00 0000 151 | C20: Субвенции бюджетам субъектов Российской Федерации и муниципальных образований | D20: 2.3 | E20: 68.80 | F20: 68.80 | G20: 100
A21: 801 | B21: 2 02 04014 10 0000 151 | C21: Межбюджетные трансферты, передаваемые бюджетам муниципальных образований на осуществление части полномочий по решению вопросов местного значения | D21: -45.8 | E21: 100.24 | F21: 100.24 | G21: 100
A22: 801 | B22: 2 02 04999 10 0000 151 | C22: Прочие межбюджетные трансферты, передаваемые бюджетам сельских поселений | D22: 45.8 | E22: 704.23 | F22: 704.23 | G22: =F22/E22*100 -> 100
A23: 801 | B23: 2 19 60010 10 0000 150 | C23: Возврат прочих остатков субсидий, субвенций и иных межбюджетных трансфертов, имеющих целевое назначение, прошлых лет из бюджетов сельских поселений | E23: -125.88 | F23: -125.88 | G23: 100
C24: Всего доходов | D24: =D5+D16 ->  | E24: =E5+E16 -> 2270.29 | F24: =F5+F16 -> 2272.19 | G24: 100

Sheet 2
B1: Приложение 2 к Решению №26 от 27 05.22 г . « Об исполнении бюджета сельской администрации МО Каспинское сельское поселение за 2021 года."
A3: Распределение бюджетных ассигнований по разделам, подразделам классификации расходов бюджета муниципального образования Каспинское сельское поселение 2021год
A5: Наименование показателя | B5: Раздел, подраздел | C5: Изменения (+;-) | D5: Утверждено,(тыс.руб.) | E5: Исполнено,(тыс.руб.) | F5: Процент исполнения (процент)
A6: ОБЩЕГОСУДАРСТВЕННЫЕ ВОПРОСЫ | B6: 0100 | C6: =SUM(C7:C8) -> 130.8 | D6: =SUM(D7:D11) -> 2222.09 | E6: =SUM(E7:E11) -> 2201.3 | F6: =E6/D6*100 -> 99.1
A7: Функционирование высшего должностного лица субъекта Российской Федерации и муниципального образования | B7: 0102 | C7: -38.0 | D7: 370.64 | E7: 353.78 | F7: =E7/D7*100 -> 95.4
A8: Функционирование Правительства Российской Федерации, высших исполнительных органов государственной власти субъектов Российской Федерации, местных администраций | B8: 0104 | C8: 168.8 | D8: 1162.74 | E8: 1162.44 | F8: 100.0
A9: Обеспечение проведения выборов и референдумов | B9: 0107 | D9: 110.00 | E9: 110.00 | F9: 100.0
A10: Резервные фонды | B10: 0111 | D10: 0.00
A11: ДРУГИЕ ОБЩЕГОСУДАРСТВЕННЫЕ РАСХОДЫ | B11: 0113 | D11: 578.71 | E11: 575.06 | F11: 99.4
A12: НАЦИОНАЛЬНАЯ ОБОРОНА | B12: 0200 | C12: =C13 -> 50.5 | D12: =D13 -> 68.80 | E12: =E13 -> 68.80 | F12: 100.0
A13: Мобилизационная и вневойсковая подготовка | B13: 0203 | C13: 50.5 | D13: 68.80 | E13: 68.80 | F13: =E13/D13*100 -> 100.0
A14: ЖИЛИЩНО-КОММУНАЛЬНОЕ ХОЗЯЙСТВО | B14: 0500 | D14: =D15+D16 -> 113.98 | E14: =E15+E16 -> 73.01 | F14: 64.1
A15: КОММУНАЛЬНОЕ ХОЗЯЙСТВО | B15: 0502 | D15: 103.98 | E15: 72.41 | F15: 69.6
A16: БЛАГОУСТРОЙСТВО | B16: 0503 | D16: 10.00 | E16: 0.60 | F16: 6.0
A17: ВСЕГО РАСХОДОВ | C17: =C6+#REF!+#REF!+C12+#REF! ->  | D17: =D6+D12+D14 -> 2404.86 | E17: =E6+E12+E14 -> 2343.09 | F17: 97.4

Sheet 3
C1: Приложение 3 к Решению №26 от 27 05.2022 г . « Об исполнении бюджета сельской администрации МО Каспинское сельское поселение за 2021 года."
A2: Ведомственная структура расходов бюджета муниципального образования Каспинское сельское поселение за 2021 года
H3: (тыс. рублей)
A4: Наименование главного распорядителя | B4: Гл | C4: Рз | D4: ПР | E4: ЦСР | F4: ВР | G4: Утверждено, (тыс.руб.) | H4: Исполнено, (тыс.руб.) | I4: Процент исполнения (процент)
A5: 1 | B5: 2 | C5: 3 | D5: 4 | E5: 5 | F5: 6 | G5: 7 | H5: 8 | I5: 9
A6: ОБЩЕГОСУДАРСТВЕННЫЕ ВОПРОСЫ | B6: 801 | C6: 01 | D6: 00 | G6: =G7+G11+G20+G23+G32 -> 2222.09 | H6: =H7+H11+H20+H23+H32 -> 2201.28 | I6: =H6/G6*100 -> 99.1
A7: Функционирование высшего должностного лица субьекта Российской Федерации и муниципального образования | B7: 801 | C7: 01 | D7: 02 | G7: =G8 -> 370.64 | H7: 353.78 | I7: =H7/G7*100 -> 95.4
A8: Непрограммные направления деятельности сельской администрации | B8: 801 | C8: 01 | D8: 02 | G8: 370.64 | H8: 353.78 | I8: 95.4
A9: Обеспечение деятельности высшего должностного лица | B9: 801 | C9: 01 | D9: 02 | E9: 99 0 Л1 10100 | G9: 370.64 | H9: 353.78 | I9: 95.4
A10: Расходы на выплаты персоналу в целях обеспечения выполнения функций государственными (муниципальными) органами, казенными учреждениями, органами управления государственными внебюджетными фондами | B10: 801 | C10: 01 | D10: 02 | E10: 99 0 Л1 10100 | F10: 100 | G10: 370.64 | H10: 353.78 | I10: 95.4
A11: Функционирование Правительства Российской Федерации, высших исполнительных органов государственной власти субъектов Российской Федерации, местных администрации | B11: 801 | C11: 01 | D11: 04 | G11: =G12+G16 -> 1162.74 | H11: =H12+H16 -> 1162.44 | I11: 100.0
A12: Подпрограмма "Развитие экономического и налогового потенциал" | B12: 801 | C12: 01 | D12: 04 | E12: 01 2 00 00000 | G12: =G13 -> 37.14 | H12: =H13 -> 37.14 | I12: 100.0
A13: Основное мероприятие "Формирование эффективной системы управления и распоряжения муниципальными финансами" | B13: 801 | C13: 01 | D13: 04 | E13: 01 2 01 00000 | G13: =G14+G15 -> 37.14 | H13: =H14+H15 -> 37.14 | I13: 100.0
A14: Межбюджетные трансферты | B14: 801 | C14: 01 | D14: 04 | E14: 01 2 01 01100 | F14: 500 | G14: 34.64 | H14: 34.64 | I14: 100.0
A15: Уплата налогов, сборов и иных платежей | B15: 801 | C15: 01 | D15: 04 | E15: 01 2 01 10200 | F15: 800 | G15: 2.50 | H15: 2.50 | I15: 100.0
A16: Подпрограмма "Создание условий реализаций муниципальной программы" | B16: 801 | C16: 01 | D16: 04 | E16: 01 3 00 00000 | G16: =G17 -> 1125.60 | H16: =H17 -> 1125.31 | I16: 100.0
A17: Основное мероприятие "Повышение эффективности муниципального управления" | B17: 801 | C17: 01 | D17: 04 | E17: 01 3 01 00000 | G17: =G18+G19 -> 1125.60 | H17: =H18+H19 -> 1125.31 | I17: 100.0
A18: Расходы на выплаты персоналу в целях обеспечения выполнения функций государственными (муниципальными) органами, казенными учреждениями, органами управления государственными внебюджетными фондами | B18: 801 | C18: 01 | D18: 04 | E18: 01 3 У1 80110 | F18: 100 | G18: 875.00 | H18: 874.71 | I18: 100.0
A19: Расходы на выплаты персоналу в целях обеспечения выполнения функций государственными (муниципальными) органами, казенными учреждениями, органами управления государственными внебюджетными фондами | B19: 801 | C19: 01 | D19: 04 | E19: 01 3 У1 S8500 | F19: 100 | G19: 250.60 | H19: 250.60 | I19: 100.0
A20: Обеспечение проведения выборов и референдумов | B20: 801 | C20: 01 | D20: 07 | G20: 110.00 | H20: 110.00 | I20: 100.0
A21: Организация мероприятий по проведению выборов и референдумов | B21: 801 | C21: 01 | D21: 07 | E21: 99 0 00 Ш2000 | G21: 110.00 | H21: 110.00 | I21: 100.0
A22: Иные бюджетные ассигнования | B22: 801 | C22: 01 | D22: 07 | E22: 99 0 00 Ш2000 | F22: 800 | G22: 110.00 | H22: 110.00 | I22: 100.0
A23: РЕЗЕРВНЫЕ ФОНДЫ | B23: 801 | C23: 01 | D23: 11 | G23: =G24 -> 0.00 | H23: =H24 -> 0.00
A24: Подпрограмма "Обеспечение безопасности населения и профилактика терроризма и экстремизма" | B24: 801 | C24: 01 | D24: 11 | E24: 02 2 00 00000 | G24: =G25+G27+G30 -> 0.00 | H24: =H25+H27+H30 -> 0.00
A25: Основное мероприятие "Обеспечение первичных мер пожарной безопасности в границах поселений" | B25: 801 | C25: 01 | D25: 11 | E25: 02 2 01 Ш1000 | G25: 0.00 | H25: =H26 -> 0.00
A26: Иные бюджетные ассигнования | B26: 801 | C26: 01 | D26: 11 | E26: 02 2 01 Ш1000 | F26: 800 | G26: 0.00 | H26: 0.00
A27: Основное мероприятие " Профилактика терроризма и экстремизма в границах поселения" | B27: 801 | C27: 01 | D27: 11 | E27: 02 2 02 Ш2000 | G27: =G28 -> 0.00 | H27: =H28 -> 0.00
A28: Совершенствование системы информационно- пропагандистского противодействия терроризму и экстремизму | B28: 801 | C28: 01 | D28: 11 | E28: 02 2 02 Ш2000 | G28: =G29 -> 0.00 | H28: =H29 -> 0.00
A29: Иные бюджетные ассигнования | B29: 801 | C29: 01 | D29: 11 | E29: 02 2 02 Ш2000 | F29: 800 | G29: 0.00 | H29: 0.00
A30: Основное мероприятие " Предупреждение и ликвидация последствий чрезвычайных ситуаций в границах поселения" | B30: 801 | C30: 01 | D30: 11 | E30: 02 2 03 Ш3000 | G30: =G31 -> 0.00 | H30: =H31 -> 0.00
A31: Иные бюджетные ассигнования | B31: 801 | C31: 01 | D31: 11 | E31: 02 2 03 Ш3000 | F31: 800 | G31: 0.00 | H31: 0.00
A32: Другие общегосударственные вопросы | B32: 801 | C32: 01 | D32: 13 | G32: =G33+G36+G46 -> 578.71 | H32: =H33+H36+H46 -> 575.06 | I32: 99.4
A33: Подпрограмма "Развитие социально-культурной сферы" | B33: 801 | C33: 01 | D33: 13 | E33: 01 1 00 00000 | G33: =G34 -> 0.00 | H33: =H34 -> 0.00
A34: Основное мероприятие "Развитие культурно-досуговой деятельности" | B34: 801 | C34: 01 | D34: 13 | E34: 01 1 01 01000 | G34: =G35 -> 0.00 | H34: =H35 -> 0.00
A35: Закупка товаров, работ и услуг для обеспечения государственных (муниципальных) нужд | B35: 801 | C35: 01 | D35: 13 | E35: 01 1 01 01000 | F35: 200 | G35: 0.00 | H35: 0.00
A36: Подпрограмма «Развитие экономического и налогового потенциала» | B36: 801 | C36: 01 | D36: 13 | E36: 01 2 00 00000 | G36: =G37+G41 -> 574.32 | H36: =H37+H41 -> 570.67 | I36: 99.4
A37: Основное мероприятие "Формирование эффективной системы управления и распоряжения муниципальными финансами" | B37: 801 | C37: 01 | D37: 13 | E37: 01 2 01 00000 | G37: =G38+G39 -> 99.29 | H37: =H38+H39 -> 99.29 | I37: 100.0
A38: Материально-техническое обеспечение | B38: 801 | C38: 01 | D38: 13 | E38: 01 2 01 03100 | F38: 200 | G38: 72.56 | H38: 72.56 | I38: 100.0
A39: Обеспечение мероприятий по по информатизации бюджетного процесса | B39: 801 | C39: 01 | D39: 13 | E39: 01 2 01 S9600 | F39: 200 | G39: 26.72 | H39: 26.72 | I39: 100.0
A40: Закупка товаров, работ и услуг для обеспечения государственных (муниципальных) нужд | B40: 801 | C40: 01 | D40: 13 | E40: 01 2 01 S9600 | F40: 200 | G40: 26.72 | H40: 26.72 | I40: 100.0
A41: Основное мероприятие "Повышение эффективной управления муниципальной собственностью" | B41: 801 | C41: 01 | D41: 13 | E41: 01 2 02 00000 | G41: =G42+G44 -> 475.04 | H41: =H42+H44 -> 471.39 | I41: 99.2
A42: Материально-техническое обеспечение | B42: 801 | C42: 01 | D42: 13 | E42: 01 2 02 03100 | G42: =G43 -> 265.44 | H42: =H43 -> 265.44 | I42: 100.0
A43: Закупка товаров, работ и услуг для обеспечения государственных (муниципальных) нужд | B43: 801 | C43: 01 | D43: 13 | E43: 01 2 02 03100 | F43: 200 | G43: 265.44 | H43: 265.44 | I43: =H43/G43*100 -> 100.0
A44: Материально-техническое обеспечение | B44: 801 | C44: 01 | D44: 13 | E44: 01 2 02 10000 | G44: =G45 -> 209.60 | H44: =H45 -> 205.95 | I44: 98.3
A45: Закупка товаров, работ и услуг для обеспечения государственных (муниципальных) нужд | B45: 801 | C45: 01 | D45: 13 | E45: 01 2 02 10200 | F45: 200 | G45: 209.60 | H45: 205.95 | I45: 98.3
A46: Подпрограмма «Создание условий реализации муниципальной программы» | B46: 801 | C46: 01 | D46: 13 | E46: 01 3 00 00000 | G46: =G47 -> 4.39 | H46: =H47 -> 4.39 | I46: 100.0
A47: Организация мероприятий по обеспечению проведения влажной обработки помещения участков избирательной комиссии | B47: 801 | C47: 01 | D47: 13 | E47: 01 3 01 03100 | G47: =G48 -> 4.39 | H47: =H48 -> 4.39 | I47: 100.0
A48: Закупка товаров, работ и услуг для обеспечения государственных (муниципальных) нужд | B48: 801 | C48: 01 | D48: 13 | E48: 01 3 01 03100 | F48: 200 | G48: 4.39 | H48: 4.39 | I48: 100.0
A49: НАЦИОНАЛЬНАЯ ОБОРОНА | B49: 801 | C49: 02 | D49: 00 | G49: =G50 -> 68.80 | H49: 68.80 | I49: 100.0
A50: Мобилизационная и вневойсковая подготовка | B50: 801 | C50: 02 | D50: 03 | E50: 99 0 00 00000 | G50: 68.80 | H50: 68.80 | I50: 100.0
A51: Осуществление первичного воинского учета на территориях, где отсутствуют военные комиссариаты | B51: 801 | C51: 02 | D51: 03 | E51: 99 0 Л1 51180 | G51: 68.80 | H51: 68.80 | I51: 100.0
A52: Расходы на выплаты персоналу в целях обеспечения выполнения функций государственными (муниципальными) органами, казенными учреждениями, органами управления государственными внебюджетными фондами | B52: 801 | C52: 02 | D52: 03 | E52: 99 0 Л1 51180 | F52: 100 | G52: 68.80 | H52: 68.80 | I52: =H52/G52*100 -> 100.0
A53: ЖИЛИЩНО-КОММУНАЛЬНОЕ ХОЗЯЙСТВО | B53: 801 | C53: 05 | D53: 00 | G53: =G54+G58 -> 113.98 | H53: =H54+H58 -> 73.01 | I53: 64.1
A54: Коммунальное хозяйство | B54: 801 | C54: 05 | D54: 02 | G54: =G56 -> 103.98 | H54: =H55 -> 72.41 | I54: 69.6
A55: Подпрограмма "Развитие инженерно- коммунального и дорожно-транспортного комплекса" | B55: 801 | C55: 05 | D55: 02 | E55: 02 1 02 00000 | G55: =G56 -> 103.98 | H55: =H56 -> 72.41 | I55: 69.6
A56: Основное мероприятие "Содержание инженерно -коммунальной инфраструктуры | B56: 801 | C56: 05 | D56: 02 | E56: 02 1 02 00000 | G56: =G57 -> 103.98 | H56: =H57 -> 72.41 | I56: 69.6
A57: Закупка товаров, работ и услуг для обеспечения государственных (муниципальных) нужд | B57: 801 | C57: 05 | D57: 02 | E57: 02 1 02 01400 | F57: 200 | G57: 103.98 | H57: 72.41 | I57: 69.6
A58: Благоустройство | B58: 801 | C58: 05 | D58: 03 | G58: =G59 -> 10.00 | H58: 0.60 | I58: 6.0
A59: Подпрограмма "Повышение уровня благоустройство территории" | B59: 801 | C59: 05 | D59: 03 | E59: 02 3 00 00000 | G59: 10.00 | H59: 0.60 | I59: 6.0
A60: Основное мероприятие "Подержание и улучшение санитрарного и эстетического состояния территории" | B60: 801 | C60: 05 | D60: 03 | E60: 02 3 01 00000 | G60: 10.00 | H60: 0.60 | I60: 6.0
A61: Закупка товаров, работ и услуг для обеспечения государственных (муниципальных) нужд | B61: 801 | C61: 05 | D61: 03 | E61: 02 3 01 10000 | F61: 200 | G61: 10.00 | H61: 0.60 | I61: 6.0
A62: ВСЕГО РАСХОДОВ | G62: =G6+G49+G53 -> 2404.86 | H62: =H6+H49+H53 -> 2343.09 | I62: =H62/G62*100 -> 97.4

Sheet 4
C1: Приложение 4 к Решению № 26 от 27.05 .2022 г . « Об исполнении бюджета сельской администрации МО Каспинское сельское поселение за 2021 года."
A2: Источники финансирования бюджета муниципального образования Каспинское сельское поселение за 2021 год
B4: Код бюджетной классификации | C4: Утвержденные плановые назначения на 2021 год, сумма (тыс. рублей) | D4: Кассовое исполнение за 3 квартал 2021 год, сумма (тыс. рублей) | E4: Процент исполнения плана (процент)
A5: Дефицит бюджета | C5: =C6 -> 134.57 | D5: =D6 -> 70.90 | E5: =E6 -> 63.67
A6: Источники внутреннего финансирования дефицита бюджета: | B6: 000 01 00 00 00 00 0000 000 | C6: =C8 -> 134.57 | D6: =D8 -> 70.90 | E6: =E8 -> 63.67
A7: в том числе:
A8: Изменение остатков средств на счетах по учету средств бюджета | B8: 000 01 05 00 00 00 0000 000 | C8: 134.57 | D8: 70.90 | E8: =C8-D8 -> 63.67
A9: Кредиты кредитных организаций в валюте Российской Федерации | B9: 000 01 02 00 00 00 0000 000
A10: Получение кредитов от кредитных организаций в валюте Российской Федерации | B10: 000 01 02 00 00 00 0000 700
A11: Получение кредитов от кредитных организаций местными бюджетами бюджетами в валюте Российской Федерации | B11: 000 01 02 00 00 05 0000 710
A12: Погашение кредитов, предоставленных кредитными организациями в валюте Российской Федерации | B12: 000 01 02 00 00 00 0000 800
A13: Погашение местными бюджетами кредитов от кредитных организаций в валюте Российской Федерации | B13: 000 01 02 02 00 05 0000 810

Sheet Лист1
